Workbook

Sheet Mittelhilfstabelle
A2: Stunde | B2: Wind | C2: Luftfeuchtigkeit | D2: Luftdruck | E2: Taupunkttemperatur | F2: Bewölkung | H2: Stunde | I2: Wind | J2: Luftfeuchtigkeit | K2: Luftdruck | L2: Taupunkttemperatur | M2: Bewölkung
A3: 00 | B3: 1 | C3: 86 | D3: 1007.9 | E3: -2.6 | F3: 8 | H3: 00 | I3: 0 | J3: 88 | K3: 1009.6 | L3: -3.1 | M3: 8
A4: 01 | B4: 1 | C4: 87 | D4: 1007.8 | E4: -3.7 | F4: 8 | H4: 01 | I4: 0 | J4: 89 | K4: 1009.4 | L4: -3.3 | M4: 8
A5: 02 | B5: 0 | C5: 88 | D5: 1007.5 | E5: -3.4 | F5: 8 | H5: 02 | I5: 1 | J5: 89 | K5: 1009.3 | L5: -3.5 | M5: 8
A6: 03 | B6: 0 | C6: 89 | D6: 1007.6 | E6: -3.5 | F6: 8 | H6: 03 | I6: 1 | J6: 89 | K6: 1009.3 | L6: -3.5 | M6: 8
A7: 04 | B7: 1 | C7: 91 | D7: 1007.4 | E7: -3 | F7: 8 | H7: 04 | I7: 0 | J7: 90 | K7: 1009.1 | L7: -3.1 | M7: 8
A8: 05 | B8: 0 | C8: 94 | D8: 1007.4 | E8: -2.9 | F8: 8 | H8: 05 | I8: 1 | J8: 91 | K8: 1009.2 | L8: -3.2 | M8: 8
A9: 06 | B9: 0 | C9: 94 | D9: 1007.6 | E9: -2.9 | F9: 8 | H9: 06 | I9: 1 | J9: 92 | K9: 1009.2 | L9: -3.3 | M9: 8
A10: 07 | B10: 0 | C10: 94 | D10: 1007.9 | E10: -2.5 | F10: 8 | H10: 07 | I10: 0 | J10: 93 | K10: 1009.5 | L10: -3.4 | M10: 8
A11: 08 | B11: 0 | C11: 93 | D11: 1007.8 | E11: -2 | F11: 8 | H11: 08 | I11: 0 | J11: 92 | K11: 1009.7 | L11: -3.1 | M11: 8
A12: 09 | B12: 1 | C12: 92 | D12: 1008.2 | E12: -1.9 | F12: 7 | H12: 09 | I12: 1 | J12: 89 | K12: 1009.8 | L12: -2.7 | M12: 8
A13: 10 | B13: 1 | C13: 89 | D13: 1008.3 | E13: -1.5 | F13: 7 | H13: 10 | I13: 1 | J13: 83 | K13: 1010 | L13: -2.1 | M13: 8
A14: 11 | B14: 1 | C14: 84 | D14: 1007.9 | E14: -1.6 | F14: 7 | H14: 11 | I14: 2 | J14: 74 | K14: 1009.7 | L14: -2.9 | M14: 8
A15: 12 | B15: 1 | C15: 78 | D15: 1007.6 | E15: -1.8 | F15: 7 | H15: 12 | I15: 1 | J15: 82 | K15: 1009.7 | L15: -2.3 | M15: 8
A16: 13 | B16: 1 | C16: 73 | D16: 1007.7 | E16: -2.2 | F16: 7 | H16: 13 | I16: 1 | J16: 84 | K16: 1009.7 | L16: -2.1 | M16: 8
A17: 14 | B17: 1 | C17: 64 | D17: 1007.6 | E17: -3.5 | F17: 7 | H17: 14 | I17: 1 | J17: 77 | K17: 1009.5 | L17: -2.2 | M17: 8
A18: 15 | B18: 1 | C18: 66 | D18: 1007.4 | E18: -3.6 | F18: 8 | H18: 15 | I18: 1 | J18: 84 | K18: 1009.5 | L18: -1.2 | M18: 8
A19: 16 | B19: 1 | C19: 70 | D19: 1007.7 | E19: -3.1 | F19: 8 | H19: 16 | I19: 1 | J19: 86 | K19: 1009.6 | L19: -1.6 | M19: 8
A20: 17 | B20: 1 | C20: 67 | D20: 1007.8 | E20: -3.8 | F20: 8 | H20: 17 | I20: 1 | J20: 85 | K20: 1009.9 | L20: -1.9 | M20: 8
A21: 18 | B21: 1 | C21: 74 | D21: 1007.8 | E21: -3 | F21: 8 | H21: 18 | I21: 1 | J21: 93 | K21: 1010.1 | L21: -1.2 | M21: 8
A22: 19 | B22: 1 | C22: 78 | D22: 1008.4 | E22: -2.6 | F22: 8 | H22: 19 | I22: 1 | J22: 94 | K22: 1010.5 | L22: -1.4 | M22: 8
A23: 20 | B23: 1 | C23: 82 | D23: 1008.9 | E23: -2.8 | F23: 8 | H23: 20 | I23: 1 | J23: 90 | K23: 1010.8 | L23: -2.2 | M23: 8
A24: 21 | B24: 1 | C24: 84 | D24: 1009 | E24: -2.8 | F24: 8 | H24: 21 | I24: 1 | J24: 93 | K24: 1010.9 | L24: -1.9 | M24: 8
A25: 22 | B25: 0 | C25: 84 | D25: 1009.4 | E25: -3 | F25: 8 | H25: 22 | I25: 1 | J25: 92 | K25: 1010.6 | L25: -2.1 | M25: 8
A26: 23 | B26: 1 | C26: 85 | D26: 1009.6 | E26: -3 | F26: 8 | H26: 23 | I26: 1 | J26: 92 | K26: 1010.6 | L26: -2.2 | M26: 8
A27: Mittel | B27: =ROUND(AVERAGE(B3:B26),1) -> 0.7 | C27: =ROUND(AVERAGE(C3:C26),1) -> 82.8 | D27: =ROUND(AVERAGE(D3:D26),1) -> 1008 | E27: =AVERAGE(E3:E26) -> -2.779166667 | F27: =ROUND(AVERAGE(F3:F26),1) -> 7.8 | H27: Mittel | I27: =ROUND(AVERAGE(I3:I26),1) -> 0.8 | J27: =ROUND(AVERAGE(J3:J26),1) -> 88 | K27: =ROUND(AVERAGE(K3:K26),1) -> 1009.8 | L27: =AVERAGE(L3:L26) -> -2.479166667 | M27: =ROUND(AVERAGE(M3:M26),1) -> 8
E29: 2013-03-30 | L29: 2013-03-31
A32: Stunde | B32: Wind | C32: Luftfeuchtigkeit | D32: Luftdruck | E32: Taupunkttemperatur | F32: Bewölkung | H32: Stunde | I32: Wind | J32: Luftfeuchtigkeit | K32: Luftdruck | L32: Taupunkttemperatur | M32: Bewölkung
A33: 00 | B33: 1 | C33: 93 | D33: 1010.2 | E33: -2.3 | F33: 8 | H33: 00 | I33: 0 | J33: 86 | K33: 1009 | L33: -1.7 | M33: 7
A34: 01 | B34: 1 | C34: 92 | D34: 1010 | E34: -2.7 | F34: 8 | H34: 01 | I34: 1 | J34: 95 | K34: 1008.4 | L34: -1.1 | M34: 8
A35: 02 | B35: 1 | C35: 93 | D35: 1010.2 | E35: -2.8 | F35: 8 | H35: 02 | I35: 0 | J35: 97 | K35: 1007.4 | L35: -0.9 | M35: 8
A36: 03 | B36: 1 | C36: 93 | D36: 1010.2 | E36: -2.9 | F36: 8 | H36: 03 | I36: 0 | J36: 97 | K36: 1006.6 | L36: -0.9 | M36: 8
A37: 04 | B37: 1 | C37: 92 | D37: 1010 | E37: -3 | F37: 8 | H37: 04 | I37: 0 | J37: 97 | K37: 1006.2 | L37: -0.9 | M37: 8
A38: 05 | B38: 1 | C38: 93 | D38: 1009.9 | E38: -2.8 | F38: 8 | H38: 05 | I38: 0 | J38: 96 | K38: 1005.5 | L38: -0.9 | M38: 8
A39: 06 | B39: 1 | C39: 94 | D39: 1009.9 | E39: -2.8 | F39: 8 | H39: 06 | I39: 0 | J39: 95 | K39: 1005.3 | L39: -0.9 | M39: 8
A40: 07 | B40: 1 | C40: 93 | D40: 1010.2 | E40: -2.6 | F40: 8 | H40: 07 | I40: 0 | J40: 93 | K40: 1005 | L40: -1 | M40: 8
A41: 08 | B41: 1 | C41: 91 | D41: 1010.6 | E41: -2.5 | F41: 8 | H41: 08 | I41: 0 | J41: 89 | K41: 1005 | L41: -0.6 | M41: 7
A42: 09 | B42: 1 | C42: 89 | D42: 1010.7 | E42: -2.6 | F42: 8 | H42: 09 | I42: 1 | J42: 84 | K42: 1005.3 | L42: -0.3 | M42: 7
A43: 10 | B43: 1 | C43: 88 | D43: 1011.1 | E43: -2.6 | F43: 8 | H43: 10 | I43: 1 | J43: 82 | K43: 1005.9 | L43: -0.3 | M43: 8
A44: 11 | B44: 1 | C44: 86 | D44: 1011.3 | E44: -2.6 | F44: 8 | H44: 11 | I44: 2 | J44: 78 | K44: 1006.1 | L44: -1.4 | M44: 8
A45: 12 | B45: 1 | C45: 76 | D45: 1011.4 | E45: -2.8 | F45: 8 | H45: 12 | I45: 1 | J45: 78 | K45: 1006.4 | L45: -1.5 | M45: 8
A46: 13 | B46: 1 | C46: 75 | D46: 1011.6 | E46: -3 | F46: 8 | H46: 13 | I46: 1 | J46: 74 | K46: 1006.3 | L46: -1.8 | M46: 8
A47: 14 | B47: 1 | C47: 85 | D47: 1011.9 | E47: -2.8 | F47: 8 | H47: 14 | I47: 2 | J47: 77 | K47: 1006.4 | L47: -1.8 | M47: 8
A48: 15 | H48: 15 | I48: 2 | J48: 77 | K48: 1006.7 | L48: -2.2 | M48: 8
A49: 16 | H49: 16 | I49: 1 | J49: 83 | K49: 1007 | L49: -1.4 | M49: 8
A50: 17 | H50: 17 | I50: 1 | J50: 85 | K50: 1006.9 | L50: -1.2 | M50: 8
A51: 18 | H51: 18 | I51: 1 | J51: 87 | K51: 1007.3 | L51: -1.3 | M51: 8
A52: 19 | H52: 19 | I52: 1 | J52: 87 | K52: 1007.6 | L52: -1.7 | M52: 8
A53: 20 | H53: 20 | I53: 0 | J53: 88 | K53: 1008.1 | L53: -2 | M53: 8
A54: 21 | H54: 21 | I54: 0 | J54: 88 | K54: 1007.9 | L54: -2.1 | M54: 8
A55: 22 | H55: 22 | I55: 0 | J55: 87 | K55: 1007.9 | L55: -2.2 | M55: 8
A56: 23 | H56: 23 | I56: 0 | J56: 87 | K56: 1008.1 | L56: -2.4 | M56: 8
A57: Mittel | B57: =ROUND(AVERAGE(B33:B56),1) -> 1 | C57: =ROUND(AVERAGE(C33:C56),1) -> 88.9 | D57: =ROUND(AVERAGE(D33:D56),1) -> 1010.6 | E57: =AVERAGE(E33:E56) -> -2.72 | F57: =ROUND(AVERAGE(F33:F56),1) -> 8 | H57: Mittel | I57: =ROUND(AVERAGE(I33:I56),1) -> 0.6 | J57: =ROUND(AVERAGE(J33:J56),1) -> 87 | K57: =ROUND(AVERAGE(K33:K56),1) -> 1006.8 | L57: =AVERAGE(L33:L56) -> -1.354166667 | M57: =ROUND(AVERAGE(M33:M56),1) -> 7.9
E59: 2013-04-01 | L59: 2013-03-29

Sheet Kurztabelle
A2: Wetterwarte: Köttewitz | L2: Monat: | M2: März | Y2: Jahr: | Z2: 2013
A4: Dat. | B4: TTT | C4: TxTx | D4: TnTn | E4: Tg | F4: Umin. | G4: UU | H4: NN | I4: RRRR | J4: Art | L4: sss | M4: PPPP | N4: eee | O4: fff | R4: Tage mit | V4: fk
J5: * | O5: Bft | P5: SS | Q5: Art ( D ) | R5: NE | S5: Ge | T5: Bf6 | U5: Bf8 | V5: Bft
A6: 01. | B6: 1.3 | C6: 2.3 | D6: 0.4 | E6: 0 | F6: 81 | G6: 88 | H6: 8 | I6: 0 | L6: 0 | M6: 1022.7 | N6: -0.4 | O6: 1 | P6: 7 | Q6: * | V6: 4 | AA6: max >=30,0°C | AB6: max >=25,0°C | AC6: max <0,0°C | AE6: RR >=0,1 mm | AF6: RR >=1,0 mm | AG6: RR >=3,0 mm | AH6: RR >=10,0 mm
A7: 02. | B7: 0.6 | C7: 4.3 | D7: -2.7 | E7: -3.9 | F7: 70 | G7: 86 | H7: 4.1 | I7: 0 | L7: 4 | M7: 1023.9 | N7: -1.6 | O7: 1 | P7: 6 | Q7: * | V7: 3 | AA7: =COUNTIF(C6:C15,">=30") -> 0 | AB7: =COUNTIF(C6:C15,">=25") -> 0 | AC7: =COUNTIF(C6:C15,"<0") -> 0 | AE7: =COUNTIF(I6:I15,">=0,1") -> 4 | AF7: =COUNTIF(I6:I15,">=1") -> 3 | AG7: =COUNTIF(I6:I15,">=3") -> 0 | AH7: =COUNTIF(I6:I15,">=10") -> 0
A8: 03. | B8: 1.7 | C8: 3.3 | D8: 0.2 | E8: -1.1 | F8: 75 | G8: 83 | H8: 7 | I8: 0 | L8: 0 | M8: 1021.5 | N8: -0.9 | O8: 1 | P8: 5 | Q8: * | V8: 3 | AA8: =COUNTIF(C18:C27,">=30") -> 0 | AB8: =COUNTIF(C18:C27,">=25") -> 0 | AC8: =COUNTIF(C18:C27,"<0") -> 3 | AE8: =COUNTIF(I18:I27,">=0,1") -> 7 | AF8: =COUNTIF(I18:I27,">=1") -> 3 | AG8: =COUNTIF(I18:I27,">=3") -> 3 | AH8: =COUNTIF(I18:I27,">=10") -> 0
A9: 04. | B9: 2.3 | C9: 6.3 | D9: -1.3 | E9: -2.1 | F9: 61 | G9: 80 | H9: 1.1 | I9: 0 | L9: 5.5 | M9: 1023.5 | N9: -0.9 | O9: 0 | P9: 4 | Q9: D | V9: 2 | AA9: =COUNTIF(C30:C40,">=30") -> 0 | AB9: =COUNTIF(C30:C40,">=25") -> 0 | AC9: =COUNTIF(C30:C40,"<0") -> 4 | AE9: =COUNTIF(I30:I40,">=0,1") -> 7 | AF9: =COUNTIF(I30:I40,">=1") -> 2 | AG9: =COUNTIF(I30:I40,">=3") -> 1 | AH9: =COUNTIF(I30:I40,">=10") -> 0
A10: 05. | B10: 4.3 | C10: 8.6 | D10: 1 | E10: -1.1 | F10: 60 | G10: 71 | H10: 0 | I10: 0 | L10: 4.3 | M10: 1015.7 | N10: -0.7 | O10: 1 | P10: 3 | Q10: D | V10: 3
A11: 06. | B11: 5.3 | C11: 11.7 | D11: 1 | E11: -1.7 | F11: 49 | G11: 71 | H11: 1.7 | I11: 0 | L11: 4.5 | M11: 1007.3 | N11: 0.3 | O11: 1 | P11: 3 | Q11: V | V11: 3 | AA11: min <0,0°C | AB11: min <0-10,0°C | AE11: rel.Lf. 14h >=70% | AG11: rel.Lf. 14h <=40%
A12: 07. | B12: 6.2 | C12: 11.1 | D12: 2.5 | E12: 0 | F12: 75 | G12: 87 | H12: 7.3 | I12: 2 | J12: R | L12: 0 | M12: 1003.6 | N12: 4.1 | O12: 1 | P12: 0 | Q12: R | R12: 1 | V12: 3 | AA12: =COUNTIF(D6:D15,"<0") -> 3 | AB12: =COUNTIF(D6:D15,"<=-10") -> 0 | AE12: =COUNTIF(F6:F15,">=70") -> 6 | AG12: =COUNTIF(F6:F15,"<=40") -> 0
A13: 08. | B13: 3.2 | C13: 5.2 | D13: 0.7 | E13: 0.6 | F13: 94 | G13: 96 | H13: 8 | I13: 0.1 | J13: R | L13: 0 | M13: 1005.6 | N13: 2.7 | O13: 1 | R13: 1 | V13: 3 | AA13: =COUNTIF(D18:D27,"<0") -> 10 | AB13: =COUNTIF(D18:D27,"<=-10") -> 2 | AE13: =COUNTIF(F18:F27,">=70") -> 6 | AG13: =COUNTIF(F18:F27,"<=40") -> 0
A14: 09. | B14: 1.4 | C14: 2.8 | D14: 0.2 | E14: 0 | F14: 93 | G14: 96 | H14: 8 | I14: 2.8 | J14: R | L14: 0 | M14: 1004.9 | N14: 0.9 | O14: 1 | R14: 1 | V14: 3 | AA14: =COUNTIF(D30:D40,"<0") -> 11 | AB14: =COUNTIF(D30:D40,"<=-10") -> 1 | AE14: =COUNTIF(F30:F40,">=70") -> 5 | AG14: =COUNTIF(F30:F40,"<=40") -> 0
A15: 10. | B15: 4.1 | C15: 11.3 | D15: -1.6 | E15: -2.1 | F15: 66 | G15: 92 | H15: 7.2 | I15: 1.8 | J15: SR | L15: 1.3 | M15: 999.4 | N15: 3 | O15: 1 | R15: 1 | V15: 3
A16: Su | B16: =SUM(B6:B15) -> 30.4 | C16: =SUM(C6:C15) -> 66.9 | D16: =SUM(D6:D15) -> 0.4 | E16: =SUM(E6:E15) -> -11.4 | F16: XXX | G16: =SUM(G6:G15) -> 850 | H16: =SUM(H6:H15) -> 52.4 | I16: =SUM(I6:I15) -> 6.7 | J16: =SUM(K6:K15) -> 0 | L16: =SUM(L6:L15) -> 19.6 | M16: =SUM(M6:M15) -> 10128.1 | N16: =SUM(N6:N15) -> 6.5 | O16: =SUM(O6:O15) -> 9 | P16: =COUNT(P6:P15) -> 7 | Q16: X | R16: =SUM(R6:R15) -> 4 | S16: =SUM(S6:S15) -> 0 | T16: =SUM(T6:T15) -> 0 | U16: =SUM(U6:U15) -> 0 | V16: XXX | AA16: ohne Sonne | AB16: Son. 0,1-0,9 | AC16: Son. >=10,0 | AE16: Sch. >=1 cm | AF16: Sch. >=3 cm | AG16: Sch. >=10 cm
A17: Mi | B17: =SUM(B16/10) -> 3.04 | C17: =AVERAGE(C16/10) -> 6.69 | D17: =AVERAGE(D16/10) -> 0.04 | E17: =E16/10 -> -1.14 | F17: XXX | G17: =AVERAGE(G16/10) -> 85 | H17: =AVERAGE(H16/10) -> 5.24 | I17: XXXXX | J17: XX | L17: XXXX | M17: =AVERAGE(M16/10) -> 1012.81 | N17: =AVERAGE(N16/10) -> 0.65 | O17: =O16/10 -> 0.9 | P17: XXX | Q17: X | R17: XX | S17: XX | T17: XX | U17: XX | V17: XXX | AA17: =COUNTIF(L6:L15,".") -> 0 | AB17: =COUNTIF(L6:L15,"<1") -> 5 | AC17: =COUNTIF(L6:L15,">=10") -> 0 | AE17: =COUNTIF(P6:P15,">=1") -> 6 | AF17: =COUNTIF(P6:P15,">=3") -> 6 | AG17: =COUNTIF(P6:P15,">=10") -> 0
A18: 11. | B18: -3.9 | C18: -1.6 | D18: -4.6 | E18: -4.4 | F18: 87 | G18: 91 | H18: 8 | I18: 0.8 | J18: S | L18: 0 | M18: 1005.2 | N18: -5.2 | O18: 1 | P18: 0 | Q18: R | R18: 1 | V18: 3 | AA18: =COUNTIF(L18:L27,".") -> 0 | AB18: =COUNTIF(L18:L27,"<1") -> 5 | AC18: =COUNTIF(L18:L27,">=10") -> 0 | AE18: =COUNTIF(P18:P27,">=1") -> 9 | AF18: =COUNTIF(P18:P27,">=3") -> 9 | AG18: =COUNTIF(P18:P27,">=10") -> 5
A19: 12. | B19: -4.2 | C19: -3.2 | D19: -4.9 | E19: -4.4 | F19: 83 | G19: 91 | H19: 8 | I19: 5.1 | J19: S | L19: 0 | M19: 1005 | N19: -5.5 | O19: 1 | P19: 5 | Q19: * | R19: 1 | V19: 3 | AA19: =COUNTIF(L30:L40,".") -> 0 | AB19: =COUNTIF(L30:L40,"<1") -> 4 | AC19: =COUNTIF(L30:L40,">=10") -> 0 | AE19: =COUNTIF(P30:P40,">=1") -> 11 | AF19: =COUNTIF(P30:P40,">=3") -> 11 | AG19: =COUNTIF(P30:P40,">=10") -> 2
A20: 13. | B20: -4.6 | C20: -3.1 | D20: -5.9 | E20: -3.3 | F20: 79 | G20: 88 | H20: 7.9 | I20: 0.2 | J20: S | L20: 0 | M20: 1004.8 | N20: -6.2 | O20: 1 | P20: 14 | Q20: * | R20: 1 | V20: 2
A21: 14. | B21: -5.5 | C21: 0 | D21: -10.9 | E21: -7.2 | F21: 53 | G21: 80 | H21: 1.3 | I21: 0 | L21: 7 | M21: 1010.3 | N21: -8.6 | O21: 1 | P21: 12 | Q21: * | V21: 3 | AA21: Max TT | AB21: Max TxTx | AC21: Min TgTg | AE21: Max RR
A22: 15. | B22: -3.6 | C22: 0.3 | D22: -7.6 | E22: -6.7 | F22: 70 | G22: 86 | H22: 5.7 | I22: 0.3 | J22: S | L22: 3.5 | M22: 1015.4 | N22: -5.5 | O22: 1 | P22: 10 | Q22: * | R22: 1 | V22: 3 | AA22: =MAX(B6:B15,B18:B27,B30:B40) -> 6.2 | AB22: =MAX(C6:C15,C18:C27,C30:C40) -> 11.7 | AC22: =MIN(E6:E15,E18:E27,E30:E40) -> -13.9 | AE22: =MAX(I6:I15,I18:I27,I30:I40) -> 9.4
A23: 16. | B23: -4.5 | C23: 2.7 | D23: -11.5 | E23: -11.1 | F23: 55 | G23: 74 | H23: 0.3 | I23: 0 | L23: 6 | M23: 1019.6 | N23: -8.8 | O23: 1 | P23: 8 | Q23: * | V23: 3 | AA23: Min TT | AB23: Min TnTn | AC23: Min U14 | AE23: Max SS
A24: 17. | B24: -0.1 | C24: 4.4 | D24: -3.8 | E24: -6.1 | F24: 57 | G24: 67 | H24: 6.5 | I24: 0 | L24: 3.8 | M24: 1010.8 | N24: -5.7 | O24: 1 | P24: 8 | Q24: * | V24: 4 | AA24: =MIN(B6:B15,B18:B27,B30:B40) -> -6.2 | AB24: =MIN(D6:D15,D18:D27,D30:D40) -> -12.7 | AC24: =MIN(F6:F15,F18:F27,F30:F40) -> 41 | AE24: =MAX(P6:P15,P18:P27,P30:P40) -> 14
A25: 18. | B25: 1.2 | C25: 4.6 | D25: -0.5 | E25: -1.7 | F25: 68 | G25: 80 | H25: 8 | I25: 7.1 | J25: S | L25: 0 | M25: 998.7 | N25: -2 | O25: 1 | P25: 5 | Q25: D | R25: 1 | V25: 3
A26: 19. | B26: -0.4 | C26: 1.3 | D26: -1.8 | E26: -2.2 | F26: 86 | G26: 93 | H26: 8 | I26: 3.8 | J26: S | L26: 0 | M26: 996.8 | N26: -1.4 | O26: 0 | P26: 13 | Q26: * | R26: 1 | V26: 3
A27: 20. | B27: 1.6 | C27: 5.1 | D27: -0.8 | E27: -0.6 | F27: 80 | G27: 88 | H27: 7.3 | I27: 0.9 | J27: SR | L27: 4.5 | M27: 1005.9 | N27: -0.2 | O27: 0 | P27: 12 | Q27: * | R27: 1 | V27: 1
A28: Su | B28: =SUM(B18:B27) -> -24 | C28: =SUM(C18:C27) -> 10.5 | D28: =SUM(D18:D27) -> -52.3 | E28: XXXX | F28: XXX | G28: =SUM(G18:G27) -> 838 | H28: =SUM(H18:H27) -> 61 | I28: =SUM(I18:I27) -> 18.2 | J28: =SUM(K18:K27) -> 0 | L28: =SUM(L18:L27) -> 24.8 | M28: =SUM(M18:M27) -> 10072.5 | N28: =SUM(N18:N27) -> -49.1 | O28: =SUM(O18:O27) -> 8 | P28: =COUNT(P18:P27) -> 10 | Q28: X | R28: =SUM(R18:R27) -> 7 | S28: =SUM(S18:S27) -> 0 | T28: =SUM(T18:T27) -> 0 | U28: =SUM(U18:U27) -> 0 | V28: XXX
A29: Mi | B29: =AVERAGE(B28/10) -> -2.4 | C29: =AVERAGE(C28/10) -> 1.05 | D29: =AVERAGE(D28/10) -> -5.23 | E29: XXXX | F29: XXX | G29: =AVERAGE(G28/10) -> 83.8 | H29: =AVERAGE(H28/10) -> 6.1 | I29: XXXXX | J29: XX | L29: XXXX | M29: =AVERAGE(M28/10) -> 1007.25 | N29: =AVERAGE(N28/10) -> -4.91 | O29: =O28/10 -> 0.8 | P29: XXX | Q29: X | R29: XX | S29: XX | T29: XX | U29: XX | V29: XXX
A30: 21. | B30: 0.2 | C30: 2.8 | D30: -1.1 | E30: -1.7 | F30: 77 | G30: 89 | H30: 7.6 | I30: 0.4 | J30: S | L30: 0 | M30: 1015 | N30: -1.4 | O30: 1 | P30: 6 | Q30: * | R30: 1 | V30: 4
A31: 22. | B31: -2.1 | C31: -0.6 | D31: -3.9 | E31: -4.4 | F31: 81 | G31: 88 | H31: 7.5 | I31: 0.2 | J31: S | L31: 0 | M31: 1021.2 | N31: -3.7 | O31: 1 | P31: 7 | Q31: * | R31: 1 | V31: 4
A32: 23. | B32: -6.1 | C32: -3.7 | D32: -9.1 | E32: -10 | F32: 47 | G32: 70 | H32: 3.5 | I32: 0 | L32: 9.8 | M32: 1024.4 | N32: -10.6 | O32: 2 | P32: 6 | Q32: * | V32: 4
A33: 24. | B33: -6.2 | C33: -0.8 | D33: -12.7 | E33: -13.9 | F33: 44 | G33: 66 | H33: 3 | I33: 0 | L33: 9 | M33: 1024 | N33: -11.9 | O33: 2 | P33: 6 | Q33: * | V33: 5
A34: 25. | B34: -3.8 | C34: -0.6 | D34: -6.9 | E34: -8.3 | F34: 56 | G34: 69 | H34: 6.1 | I34: 0 | L34: 5.8 | M34: 1019.4 | N34: -8.8 | O34: 2 | P34: 6 | Q34: * | V34: 5
A35: 26. | B35: -3.1 | C35: 0 | D35: -6.3 | E35: -7.8 | F35: 41 | G35: 63 | H35: 6.2 | I35: 0 | L35: 6.3 | M35: 1015.6 | N35: -9.4 | O35: 2 | P35: 5 | Q35: D | V35: 5
A36: 27. | B36: -2.3 | C36: 0.7 | D36: -5 | E36: -5.6 | F36: 56 | G36: 72 | H36: 8 | I36: 0.2 | J36: S | L36: 3.2 | M36: 1014.7 | N36: -6.8 | O36: 2 | P36: 5 | Q36: D | R36: 1 | V36: 5
A37: 28. | B37: -1.3 | C37: 0.8 | D37: -3.7 | E37: -4.4 | F37: 82 | G37: 89 | H37: 7.9 | I37: 9.4 | J37: S | L37: 0 | M37: 1012.7 | N37: -3 | O37: 1 | P37: 5 | Q37: D | V37: 2
A38: 29. | B38: 0.6 | C38: 3.2 | D38: -0.8 | E38: -1.7 | F38: 72 | G38: 87 | H38: 7.9 | I38: 0.3 | J38: S | L38: 1.5 | M38: 1006.8 | N38: -1.4 | O38: 1 | P38: 12 | Q38: * | V38: 4
A39: 30. | B39: -0.1 | C39: 3.1 | D39: -2.2 | E39: -2.8 | F39: 60 | G39: 83 | H39: 7.8 | I39: 0.1 | J39: S | L39: 4 | M39: 1008 | N39: -2.8 | O39: 1 | P39: 11 | Q39: * | R39: 1 | V39: 2
A40: 31. | B40: -0.7 | C40: 1.5 | D40: -2.5 | E40: -2.8 | F40: 73 | G40: 88 | H40: 8 | I40: 2.2 | J40: S | L40: 0.8 | M40: 1009.8 | N40: -2.5 | O40: 1 | P40: 8 | Q40: * | R40: 1 | V40: 3
A41: Su | B41: =SUM(B30:B40) -> -24.9 | C41: =SUM(C30:C40) -> 6.4 | D41: =SUM(D30:D40) -> -54.2 | E41: XXXX | F41: XXX | G41: =SUM(G30:G40) -> 864 | H41: =SUM(H30:H40) -> 73.5 | I41: =SUM(I30:I40) -> 12.8 | J41: =SUM(K30:K40) -> 0 | L41: =SUM(L30:L40) -> 40.4 | M41: =SUM(M30:M40) -> 11171.6 | N41: =SUM(N30:N40) -> -62.3 | O41: =SUM(O30:O40) -> 16 | P41: =COUNT(P30:P40) -> 11 | Q41: X | R41: =SUM(R30:R40) -> 5 | S41: =SUM(S30:S40) -> 0 | T41: =SUM(T30:T40) -> 0 | U41: =SUM(U30:U40) -> 0 | V41: XXX
A42: Mi | B42: =AVERAGE(B41/11) -> -2.263636364 | C42: =AVERAGE(C41/11) -> 0.5818181818 | D42: =AVERAGE(D41/11) -> -4.927272727 | E42: XXXX | F42: XXX | G42: =AVERAGE(G41/11) -> 78.54545455 | H42: =AVERAGE(H41/11) -> 6.681818182 | I42: XXXXX | J42: XX | L42: XXXX | M42: =AVERAGE(M41/11) -> 1015.6 | N42: =AVERAGE(N41/11) -> -5.663636364 | O42: =O41/11 -> 1.454545455 | P42: XXX | Q42: X | R42: XX | S42: XX | T42: XX | U42: XX | V42: XXX
A43: MSu | B43: =SUM(B16+B28+B41) -> -18.5 | C43: =SUM(C16+C28+C41) -> 83.8 | D43: =SUM(D16+D28+D41) -> -106.1 | E43: XXXX | F43: XXX | G43: =SUM(G16+G28+G41) -> 2552 | H43: =SUM(H16+H28+H41) -> 186.9 | I43: =SUM(I16+I28+I41) -> 37.7 | J43: =SUM(J16+J28+J41) -> 0 | L43: =SUM(L16+L28+L41) -> 84.8 | M43: =SUM(M16+M28+M41) -> 31372.2 | N43: =SUM(N16+N28+N41) -> -104.9 | O43: XXX | P43: =SUM(P16+P28+P41) -> 28 | Q43: X | R43: =SUM(R16+R28+R41) -> 16 | S43: =SUM(S16+S28+S41) -> 0 | T43: =SUM(T16+T28+T41) -> 0 | U43: =SUM(U16+U28+U41) -> 0 | V43: XXX
A44: MMi | B44: =AVERAGE(B17,B29,B42) -> -0.5412121212 | C44: =AVERAGE(C43/31) -> 2.703225806 | D44: =AVERAGE(D43/31) -> -3.422580645 | E44: XXXX | F44: XXX | G44: =AVERAGE(G43/31) -> 82.32258065 | H44: =AVERAGE(H43/31) -> 6.029032258 | I44: XXXXX | J44: XX | L44: XXXX | M44: =AVERAGE(M43/31) -> 1012.006452 | N44: =AVERAGE(N43/31) -> -3.383870968 | O44: =O17+O29+O42/3 -> 2.184848485 | P44: XXX | Q44: X | R44: XX | S44: XX | T44: XX | U44: XX | V44: XXX
B46: Norm | C46: % v N.- | D46: Abw. | E46: Zahl der Tage | L46: Niederschlag mm | P46: Sonnensch.-dauer Std
B47: wert | C47: wert | D47: K | E47: Max.d.Lufttemp.°C | L47: >/= 0,1 | O47: =SUM(AE7:AE9) -> 18 | P47: ohne Sonne | V47: 13
A48: TTT | B48: 4 | C48: XXXX | D48: =SUM(B44-B48) -> -4.541212121 | E48: Tropentag/Hitzetag | I48: =SUM(AA7:AA9) -> 0 | L48: >/= 1,0 | O48: =SUM(AF7:AF9) -> 8 | P48: 0,1 bis 0,9 | V48: 1
A49: RRR | B49: 42 | C49: =SUM(I43*100/B49) -> 89.76190476 | D49: XXXX | E49: Sommertag | I49: =SUM(AB7:AB9) -> 0 | L49: >/= 3,0 | O49: =SUM(AG7:AG9) -> 4 | P49: >/= 10,0 | V49: =SUM(AC17:AC19) -> 0
A50: sss | B50: 121 | C50: =SUM(L43*100/B50) -> 70.08264463 | D50: XXXX | E50: Eistag | I50: =SUM(AC7:AC9) -> 7 | L50: >/=10,0 | O50: =SUM(AH7:AH9) -> 0 | P50: Schneedecke cm
A51: astr. | D51: XXXX | E51: Min.d.Lufttemp.°C | L51: >/= 20,0 | O51: 0 | P51: >/= 1 | V51: =SUM(AE17:AE19) -> 26
A52: mgl. | B52: 372 | C52: =SUM(L43*100/B52) -> 22.79569892 | D52: XXXX | E52: Frosttag | I52: =SUM(AA12:AA14) -> 24 | L52: Rel. Luftfeuchte 14 Uhr | P52: >/= 3 | V52: =SUM(AF17:AF19) -> 26
A53: sss | D53: XXXX | E53: starker Eistag | I53: =SUM(AB12:AB14) -> 3 | L53: >/=70% | O53: =SUM(AE12:AE14) -> 17 | P53: >/= 10 | V53: =SUM(AG17:AG19) -> 7
L54: </=40% | O54: =SUM(AG12:AG14) -> 0

Sheet Sichtst.
E1: Sichtweitenstatistik
B5: Wetterstation: Köttewitz | F5: Monat: | G5: März | K5: Jahr: | L5: 2013
A7: Dat. | B7: Nebeldauer | C7: Nebel | D7: Dunst | E7: Sicht | F7: Sicht | G7: Sicht | H7: Sicht
B8: in St. u. Min. | E8: mittel | F8: normal | G8: gut | H8: sehr gut
A9: 01. | B9: - | C9: =IF(R9=1,1,"-") -> - | D9: =IF(R9=2,1,"-") -> - | E9: 1 | F9: - | G9: - | H9: - | N9: =IF(ISNUMBER(B9),B9*24," ") ->  | O9: =IF(ISNUMBER(N9),IF(N9<1,1," ")," ") ->  | P9: =IF(ISNUMBER(N9),IF(N9<8,2," ")," ") ->  | Q9: =IF(ISNUMBER(N9),IF(N9<24,3," ")," ") ->  | R9: =MIN(O9:Q9) -> 0
A10: 02. | B10: - | C10: - | D10: - | E10: 1 | F10: - | G10: - | H10: - | R10: 0
A11: 03. | B11: - | C11: - | D11: - | E11: 1 | F11: 1 | G11: - | H11: - | R11: 0
A12: 04. | B12: - | C12: - | D12: - | E12: 1 | F12: 1 | G12: - | H12: - | R12: 0
A13: 05. | B13: - | C13: - | D13: - | E13: - | F13: 1 | G13: - | H13: - | R13: 0
A14: 06. | B14: - | C14: - | D14: - | E14: - | F14: 1 | G14: - | H14: - | R14: 0
A15: 07. | B15: - | C15: - | D15: 1 | E15: 1 | F15: 1 | G15: - | H15: - | R15: 0
A16: 08. | B16: - | C16: - | D16: 1 | E16: 1 | F16: - | G16: - | H16: - | R16: 0
A17: 09. | B17: - | C17: - | D17: 1 | E17: 1 | F17: - | G17: - | H17: - | R17: 0
A18: 10. | B18: - | C18: - | D18: 1 | E18: 1 | F18: - | G18: - | H18: - | R18: 0
A19: 11. | B19: - | C19: - | D19: 1 | E19: 1 | F19: - | G19: - | H19: - | R19: 0
A20: 12. | B20: - | C20: - | D20: 1 | E20: 1 | F20: - | G20: - | H20: - | R20: 0
A21: 13. | B21: - | C21: - | D21: 1 | E21: 1 | F21: - | G21: - | H21: - | R21: 0
A22: 14. | B22: - | C22: - | D22: - | E22: 1 | F22: 1 | G22: - | H22: - | R22: 0
A23: 15. | B23: - | C23: - | D23: 1 | E23: 1 | F23: - | G23: - | H23: - | R23: 0
A24: 16. | B24: - | C24: - | D24: - | E24: 1 | F24: 1 | G24: - | H24: - | R24: 0
A25: 17. | B25: - | C25: - | D25: - | E25: - | F25: 1 | G25: - | H25: - | R25: 0
A26: 18. | B26: 03:20:00 | C26: 1 | D26: 1 | E26: 1 | F26: 1 | G26: - | H26: - | N26: 3.333333333 | P26: 2 | Q26: 3 | R26: 2
A27: 19. | B27: 03:00:00 | C27: 1 | D27: 1 | E27: 1 | F27: - | G27: - | H27: - | N27: 3 | P27: 2 | Q27: 3 | R27: 2
A28: 20. | B28: - | C28: - | D28: - | E28: 1 | F28: 1 | G28: - | H28: - | R28: 0
A29: 21. | B29: - | C29: - | D29: 1 | E29: 1 | F29: - | G29: - | H29: - | R29: 0
A30: 22. | B30: - | C30: - | D30: 1 | E30: 1 | F30: - | G30: - | H30: - | R30: 0
A31: 23. | B31: - | C31: - | D31: - | E31: 1 | F31: 1 | G31: - | H31: - | R31: 0
A32: 24. | B32: - | C32: - | D32: - | E32: - | F32: 1 | G32: - | H32: - | R32: 0
A33: 25. | B33: - | C33: - | D33: - | E33: - | F33: 1 | G33: - | H33: - | R33: 0
A34: 26. | B34: - | C34: - | D34: - | E34: - | F34: 1 | G34: - | H34: - | R34: 0
A35: 27. | B35: - | C35: - | D35: - | E35: 1 | F35: 1 | G35: - | H35: - | R35: 0
A36: 28. | B36: - | C36: - | D36: - | E36: 1 | F36: - | G36: - | H36: - | R36: 0
A37: 29. | B37: - | C37: - | D37: 1 | E37: 1 | F37: - | G37: - | H37: - | R37: 0
A38: 30. | B38: - | C38: - | D38: 1 | E38: 1 | F38: - | G38: - | H38: - | R38: 0
A39: 31. | B39: - | C39: =IF(R39=1,1,"-") -> - | D39: 1 | E39: - | F39: - | G39: - | H39: - | N39: =IF(ISNUMBER(B39),B39*24," ") ->  | O39: =IF(ISNUMBER(N39),IF(N39<1,1," ")," ") ->  | P39: =IF(ISNUMBER(N39),IF(N39<8,2," ")," ") ->  | Q39: =IF(ISNUMBER(N39),IF(N39<24,3," ")," ") ->  | R39: =MIN(O39:Q39) -> 0
A40: Su. | B40: XXXXXXXXX | C40: =SUM(C9:C39) -> 2 | D40: 15 | E40: 24 | F40: 15 | G40: 0 | H40: 0
B42: Anzahl der Nebeltage : | E42: =SUM(C40) -> 2
B43: Anzahl der Tage Sicht >= 50 km : | E43: =SUM(G40,H40) -> 0

Sheet Monatsdiagramm
A1: Klimadiagramm | C1: Wetterstation Köttewitz | I1: (213 m ü. NHN)
A3: März 2013
C5: aktuell | D5: langj. Mittel | E5: Abw. vom lj. Mittel
B6: höchste Temperatur (°C): | C6: =MAX('Daten für Diagr.'!C2:C29) -> 11.7 | D6: am | E6: 2013-03-06
B7: mittlere Temperatur (°C): | C7: ='Daten für Diagr.'!B33 -> -0.5967741935 | D7: =Kurztabelle!B48 -> 4 | E7: =C7-D7 -> -4.596774194 | F7: K
B8: tiefste Temperatur (°C): | C8: =MIN('Daten für Diagr.'!D2:D29) -> -12.7 | D8: am | E8: 2013-03-16
B9: Niederschlagshöhe (mm): | C9: =Kurztabelle!I43 -> 37.7 | D9: =Kurztabelle!B49 -> 42 | E9: =100/D9*C9 -> 89.76190476 | F9: %
B10: Sonnenscheindauer (Std.)*: | C10: =Kurztabelle!L43 -> 84.8 | D10: =Kurztabelle!B50 -> 121 | E10: =100/D10*C10 -> 70.08264463 | F10: %
A66: *Die Wetterstation kann, durch geographische Hindernisse, nicht die maximal mögliche Sonnenscheindauer aufzeichnen. Es gilt ein Übergangsprozentsatz von: Nov - Feb 50 %; Mär/Apr & Sep/Okt 65 %; Mai - Aug 80 %.
A67: Diese Werte entsprechend annähernd 100 % (Normalwert Köttewitz). Nach 10 Jahren erfolgt die Umstellung des Prozentsatzes nach der örtlichen Aufzeichnung.

Sheet Daten für Diagr.
B1: Td | C1: Tmax | D1: Tmin | E1: RR | F1: Schnee | G1: Sonne | H1: Luftdr. | I1: MWT | J1: GWL | K1: Name | L1: Sonstiges
A2: 2013-03-01 | B2: 1.3 | C2: 2.3 | D2: 0.4 | F2: 7 | G2: 0 | H2: 1022.7 | I2: 1.7
A3: 2013-03-02 | B3: 0.6 | C3: 4.3 | D3: -2.7 | F3: 6 | G3: 4 | H3: 1023.9 | I3: 1.85
A4: 2013-03-03 | B4: 1.7 | C4: 3.3 | D4: 0.2 | F4: 5 | G4: 0 | H4: 1021.5 | I4: 2 | J4: HM
A5: 2013-03-04 | B5: 2.3 | C5: 6.3 | D5: -1.3 | F5: 4 | G5: 5.5 | H5: 1023.5 | I5: 2.2
A6: 2013-03-05 | B6: 4.3 | C6: 8.6 | D6: 1 | F6: 3 | G6: 4.3 | H6: 1015.7 | I6: 2.35 | J6: SEa
A7: 2013-03-06 | B7: 5.3 | C7: 11.7 | D7: 1 | F7: 3 | G7: 4.5 | H7: 1007.3 | I7: 2.5 | L7: Um 13:30 Uhr Nebensonne.
A8: 2013-03-07 | B8: 6.2 | C8: 11.1 | D8: 2.5 | E8: 2 | F8: 0 | G8: 0 | H8: 1003.6 | I8: 2.65 | L8: Von 21:00 Uhr - 22:59 Uhr mäßiger Dunst. Von 20:00 Uhr - 20:59 Uhr; 23:00 Uhr - 23:59 Uhr leichter Dunst.
A9: 2013-03-08 | B9: 3.2 | C9: 5.2 | D9: 0.7 | E9: 0.1 | G9: 0 | H9: 1005.6 | I9: 2.8 | J9: U | L9: Vonn 00:00 Uhr - 08:30 Uhr; 21:00 Uhr - 23:59 Uhr leichter Dunst.
A10: 2013-03-09 | B10: 1.4 | C10: 2.8 | D10: 0.2 | E10: 2.8 | G10: 0 | H10: 1004.9 | I10: 2.95 | J10: HFz | K10: H Hildi | L10: Von 17:01 Uhr - 23:59 Uhr mäßiger Dunst. Von 00:00 Uhr - 13:59 Uhr; 15:30 Uhr - 17:00 Uhr leichter Dunst.
A11: 2013-03-10 | B11: 4.1 | C11: 11.3 | D11: -1.6 | E11: 1.8 | G11: 1.3 | H11: 999.4 | I11: 3.1 | L11: Von 21:30 Uhr - 23:59 Uhr starker Dunst. Von 17:30 Uhr - 21:29 Uhr mäßiger Dunst.Von 15:00 Uhr - 17:30 Uhr leichter Dunst.
A12: 2013-03-11 | B12: -3.9 | C12: -1.6 | D12: -4.6 | E12: 0.8 | F12: 0.1 | G12: 0 | H12: 1005.2 | I12: 3.25 | J12: HNz | L12: Von 00:00 Uhr - 00:59 Uhr mäßiger Dunst. Von 01:00 Uhr - 01:29 Uhr leichter Dunst.
A13: 2013-03-12 | B13: -4.2 | C13: -3.2 | D13: -4.9 | E13: 5.1 | F13: 5 | G13: 0 | H13: 1005 | I13: 3.4 | L13: Von 17:00 Uhr - 23:59 Uhr starker Dunst. Von 17:00 Uhr - 23:59 Uhr Sichteinschränkung durch Niederschlag. Von 02:20 Uhr - 08:59 Uhr leichter Dunst.
A14: 2013-03-13 | B14: -4.6 | C14: -3.1 | D14: -5.9 | E14: 0.2 | F14: 14 | G14: 0 | H14: 1004.8 | I14: 3.55 | J14: Nez | L14: Von 00:00 Uhr - 07:09 Uhr starker Dunst. Von 07:10 Uhr - 07:29 Uhr mäßiger Dunst. Von 07:30 Uhr - 07:49 Uhr; 09:20 Uhr - 10:59 Uhr leichter Dunst. Von 09:20 Uhr - 09:49 Uhr Sichteinschränkung durch Niederschlag.
A15: 2013-03-14 | B15: -5.5 | C15: 0 | D15: -10.9 | F15: 12 | G15: 7 | H15: 1010.3 | I15: 3.7
A16: 2013-03-15 | B16: -3.6 | C16: 0.3 | D16: -7.6 | E16: 0.3 | F16: 10 | G16: 3.5 | H16: 1015.4 | I16: 3.85 | K16: H Ilse | L16: Von 00:00 Uhr - 08:59 Uhr leichter Dunst.
A17: 2013-03-16 | B17: -4.5 | C17: 2.7 | D17: -11.5 | F17: 8 | G17: 6 | H17: 1019.6 | I17: 4 | J17: HM
A18: 2013-03-17 | B18: -0.1 | C18: 4.4 | D18: -3.6 | F18: 8 | G18: 3.8 | H18: 1010.8 | I18: 4.15 | J18: TB | K18: T Birk
A19: 2013-03-18 | B19: 1.2 | C19: 4.6 | D19: -0.5 | E19: 7.1 | F19: 5 | G19: 0 | H19: 998.7 | I19: 4.3 | L19: Von 21:40 Uhr - 23:59 Uhr leichter Nebel. Von 20:10 Uhr - 21:39 Uhr starker Dunst. Von 19:30 Uhr - 20:09 Uhr mäßiger Dunst. Von 18:30 Uhr - 19:29 Uhr leichter Dunst. Von 18:30 Uhr - 23:59 Uhr Sichteinschränkung durch Niederschlag.
A20: 2013-03-19 | B20: -0.4 | C20: 1.3 | D20: -1.8 | E20: 3.8 | F20: 13 | G20: 0 | H20: 996.8 | I20: 4.45 | L20: Von 00:00 Uhr - 02:59 Uhr leichter Nebel. Von 03:00 Uhr - 09:20 Uhr; 16:20 Uhr - 18:59 Uhr starker Dunst. Von 22:00 Uhr - 23:59 Uhr mittlere Dunst. Von 00:00 Uhr - 09:20 Uhr; 16:20 Uhr - 18:59 Uhr Sichteinschränkung durch Niederschlag.
A21: 2013-03-20 | B21: 1.6 | C21: 5.1 | D21: -0.8 | E21: 0.9 | F21: 12 | G21: 4.5 | H21: 1009.5 | I21: 4.6 | K21: T Andreas
A22: 2013-03-21 | B22: 0.2 | C22: 2.8 | D22: -1.1 | E22: 0.4 | F22: 6 | G22: 0 | H22: 1015 | I22: 4.75 | J22: Nez | K22: t Birk | L22: Von 06:30 Uhr - 08:19 Uhr mäßiger Dunst. Von 00:00 Uhr - 06:29 Uhr leichter Dunst. Von 06:30 Uhr - 08:19 Uhr Sichteinschränkung durch Niederschlag.
A23: 2013-03-22 | B23: -2.1 | C23: -0.6 | D23: -3.9 | E23: 0.2 | F23: 7 | G23: 0 | H23: 1021.2 | I23: 4.9 | J23: HNFa | K23: H Jill | L23: Von 07:40 Uhr - 08:19 Uhr mäßiger Dunst. Von 07:40 Uhr - 08:19 Uhr Sichteinschränkung durch Niederschlag.
A24: 2013-03-23 | B24: -6.1 | C24: -3.7 | D24: -9.1 | F24: 6 | G24: 9.8 | H24: 1024.4 | I24: 5.05 | L24: Nachts Mondhof.
A25: 2013-03-24 | B25: -6.2 | C25: -0.8 | D25: -12.7 | F25: 6 | G25: 9 | H25: 1024 | I25: 5.2
A26: 2013-03-25 | B26: -3.8 | C26: -0.6 | D26: -6.9 | F26: 6 | G26: 5.8 | H26: 1019.4 | I26: 5.35 | J26: HNa
A27: 2013-03-26 | B27: -3.1 | C27: 0 | D27: -6.3 | F27: 5 | G27: 6.3 | H27: 1015.6 | I27: 5.5
A28: 2013-03-27 | B28: -2.3 | C28: 0.7 | D28: -5 | E28: 0.2 | F28: 5 | G28: 3.2 | H28: 1014.7 | I28: 5.65 | J28: HNz
A29: 2013-03-28 | B29: -1.3 | C29: 0.8 | D29: -3.7 | E29: 9.4 | F29: 5 | G29: 0 | H29: 1012.7 | I29: 5.8
A30: 2013-03-29 | B30: 0.6 | C30: 3.2 | D30: -0.8 | E30: 0.3 | F30: 12 | G30: 1.5 | H30: 1006.8 | I30: 5.95 | J30: HNFz | K30: H Karin | L30: Von 00:00 Uhr - 12:19 Uhr; 13:30 Uhr - 13:59 Uhr; 14:50 Uhr - 23:59 Uhr leichter Dunst.
A31: 2013-03-30 | B31: -0.1 | C31: 3.1 | D31: -2.2 | E31: 0.1 | F31: 11 | G31: 4 | H31: 1008 | I31: 6.1 | L31: Von 03:30 Uhr - 11:49 Uhr mäßiger Dunst. Von 00:00 Uhr - 03:29 Uhr; 11:50 - 13:39 Uhr leichter Dunst.
A32: 2013-03-31 | B32: -0.7 | C32: 1.5 | D32: -2.5 | E32: 2.2 | F32: 8 | G32: 0.8 | H32: 1009.8 | I32: 6.3 | L32: Von 00:00 Uhr - 11:20 Uhr; 14:30 Uhr - 23:59 Uhr leichter Dunst. Von 14:20 Uhr - 23:59 Uhr Sichteinschränkung durch Schneefall.
A33: Durchschnitt | B33: =AVERAGE(B2:B32) -> -0.5967741935 | C33: =AVERAGE(C2:C32) -> 2.703225806 | D33: -3.416129032 | H33: =AVERAGE(H2:H32) -> 1012.122581 | I33: =AVERAGE(I2:I32) -> 3.996774194
A34: Mittel | B34: 4 | E34: 42 | F34: - | G34: 121 | H34: 1016.3
